Cogmind - Beta 13 @@@ ROGUE MODE // 2024.05.18 @ 15:08:49 Player: Sunvar Result: Self-destructed Performance ------------- Evolutions (1) 500 Regions Visited (3) 600 Robots Destroyed (33) 165 Value Destroyed (625) 625 Prototype IDs (3) 60 Alien Tech Used (0) 0 Bonus (21) 21 TOTAL SCORE: 1971 Bonus ------- Follower Combat Kills 21 Cogmind --------- Core Integrity 280/400 Matter 178/300 Energy 100/100 System Corruption 0% Temperature Cool (6) Movement Treading (160) Location -9/Materials Parts ------- > --- POWER (1) -------- (None) > --- PROPULSION (3) --- Light Treads Light Treads > --- UTILITY (3) ------ Large Storage Unit Core Shielding Light Armor Plating > --- WEAPON (2) ------- Katana > --- INVENTORY (15) --- Ion Engine Light Treads Wheel Compact Wheel High-capacity Matter Pod (200) Structural Scanner Signal Interpreter Light Armor Plating Hardened Light Armor Plating Hacking Suite Medium Laser Light Assault Rifle Light Assault Rifle Mini Grenade Launcher Datajack Peak State ------------ > --- POWER ------------ Light Nuclear Core > --- PROPULSION ------- Light Treads Light Treads > --- UTILITY ---------- Large Storage Unit Experimental Sensor Array Light Armor Plating > --- WEAPON ----------- Assault Rifle Light Assault Rifle > --- INVENTORY -------- Ion Engine Light Treads Wheel Compact Wheel Improved Heat Sink High-capacity Matter Pod Structural Scanner Signal Interpreter Light Armor Plating Hardened Light Armor Plating Hacking Suite Medium Laser Light Assault Rifle Light Assault Rifle Datajack [Rating: 20] Favorites ----------- Power Light Nuclear Core Engine Ion Engine Power Core Light Nuclear Core Propulsion Light Treads Treads Light Treads Utility Large Storage Unit Device Experimental Sensor Array Storage Large Storage Unit Processor Targeting Computer Protection Light Armor Plating Weapon Assault Rifle Energy Gun Medium Laser Ballistic Gun Assault Rifle Slashing Weapon Katana Build | -11 -10 -10 -9 ------- Run | Yrd Mat Min Mat Slots Evolved 2 | . . . 2 Power . | . . . . Propulsion 1 | . . . 1 Utility 1 | . . . 1 Weapon . | . . . . Parts Attached 20 | 7 5 1 7 Power 2 | 1 1 . . Engine 1 | 1 . . . Core 1 | . 1 . . Reactor . | . . . . Propulsion 4 | 2 . . 2 Treads 4 | 2 . . 2 Leg . | . . . . Wheel . | . . . . Hover . | . . . . Flight . | . . . . Utility 9 | 1 4 . 4 Device 2 | . . . 2 Storage 3 | 1 2 . . Processor 1 | . 1 . . Hackware . | . . . . Protection 3 | . 1 . 2 Artifact . | . . . . Weapon 5 | 3 . 1 1 Energy Gun 1 | 1 . . . Energy Cannon . | . . . . Ballistic Gun 3 | 2 . 1 . Ballistic Cannon . | . . . . Launcher . | . . . . Special Weapon . | . . . . Impact Weapon . | . . . . Slashing Weapon 1 | . . . 1 Piercing Weapon . | . . . . Special Melee Weapon . | . . . . Unidentified Prototypes 1 | . . . 1 Parts Lost 5 | . . . 5 Power 1 | . . . 1 Propulsion 1 | . . . 1 Utility 1 | . . . 1 Weapon 2 | . . . 2 Highest Loss Streak 5 | . . . 5 To Critical Strikes . | . . . . Average Slot Usage (%) 97 | . 96 100 94 Engine 3 | . 6 . . Core 10 | . 7 14 10 Treads 28 | . 28 28 31 Device 1 | . . . 7 Storage 15 | . 19 14 11 Protection 9 | . 5 14 11 Ballistic Gun 26 | . 28 28 20 Naked Turns . | . . . . Heaviest Build 32 | 14 31 31 32 Greatest Support 60 | 40 40 40 60 Greatest Overweight (x) 3 | 3 . . . Average Overweight (x) . | . . . . Largest Inventory Capacity 15 | 8 15 15 15 Average Capacity 13 | 7 11 15 15 Most Carried 15 | 4 15 15 15 Average Carried 11 | 3 9 14 14 Final Capacity 15 | 8 15 15 15 Final Carried 15 | 4 15 15 15 Class Distribution -------------------- 100% | Mutant Dominant Class ---------------- Mutant | -10/Materials Mutant | -10/Mines Mutant | -9/Materials Resources | -11 -10 -10 -9 ----------- Run | Yrd Mat Min Mat Matter Collected 920 | 208 525 109 78 Remotely . | . . . . Salvage Created 1003 | 19 638 88 258 Parts 77 | 3 48 9 17 Haulers Intercepted 3 | . 2 . 1 Recyclers Shooed 2 | . 2 . . Parts Field Recycled . | . . . . Retrieved Matter . | . . . . Parts Self-Destructed . | . . . . Prevented . | . . . . Kills | -11 -10 -10 -9 ------- Run | Yrd Mat Min Mat Combat Hostiles Destroyed 21 | . 13 3 5 Melee 1 | . . . 1 Guns 20 | . 13 3 4 Classes Destroyed 11 | 1 7 1 2 Worker 2 | . . 2 . Builder 1 | . 1 . . Tunneler 1 | 1 . . . Hauler 3 | . 2 . 1 Recycler 1 | . 1 . . Operator 1 | . 1 . . Watcher 3 | . 3 . . Swarmer 9 | . 6 3 . Grunt 10 | . 7 . 3 Duelist 1 | . . . 1 Sentry 1 | . . . 1 Best Kill Streak 3 | 1 3 3 2 Combat Bots Only 3 | . 3 3 2 Max Kills in Single Turn 2 | 1 2 1 1 Gunslinging . | . . . . Exploded . | . . . . Melee 1 | . . . 1 Uniques/NPCs Destroyed . | . . . . Combat | -11 -10 -10 -9 -------- Run | Yrd Mat Min Mat Hostile Shots Fired 108 | . 50 15 43 Missed 26 | . 15 4 7 Damage Taken 1043 | . 315 87 641 Core 186 | . 66 . 120 Absorbed by Shields . | . . . . Redirected to Shielding 4 | . . . 4 Regen/Repaired (Parts) 111 | . . . 111 Core Remaining (%) 86 | 100 . 73 . Volleys Fired 119 | 8 59 11 41 Largest 2 | 2 2 2 2 Hottest 40 | 40 40 40 40 Shots Fired 229 | 16 118 22 73 Gun 229 | 16 118 22 73 Cannon . | . . . . Launcher . | . . . . Special . | . . . . Kinetic 229 | 16 118 22 73 Thermal . | . . . . Explosive . | . . . . Electromagnetic . | . . . . Robot Hit Streak 11 | 5 11 4 7 Robot Miss Streak 3 | 2 3 2 3 Penetration Max . | . . . . Secondary Targets 3 | . 3 . . Max Gunslinging Chain 1 | . 1 . . Shots Hit Robots 152 | 12 76 10 54 Core Hits 61 | 3 38 8 12 Critical Kills 1 | . . . 1 Critical Parts Destroyed 1 | . 1 . . Critical Strikes 2 | . 1 . 1 Destroy 2 | . 1 . 1 Melee Attacks 3 | . . . 3 Impact . | . . . . Slashing 3 | . . . 3 Piercing . | . . . . Sneak Attacks 1 | . . . 1 Combat Hostiles . | . . . . Follow-up Attacks . | . . . . Damage Inflicted 1771 | 120 862 135 654 Guns 1635 | 120 862 127 526 Cannons . | . . . . Explosions . | . . . . Melee 128 | . . . 128 Ramming 8 | . . 8 . Kinetic 1635 | 120 862 127 526 Thermal . | . . . . Explosive . | . . . . Electromagnetic . | . . . . Impact . | . . . . Slashing 128 | . . . 128 Piercing . | . . . . Highest Corruption . | . . . . Average Corruption . | . . . . Corruption Purged . | . . . . Corruption Blocked . | . . . . Overload Shots . | . . . . Overflow Damage 26 | . . . 26 Projectiles . | . . . . Explosions . | . . . . Melee 26 | . . . 26 Knockbacks . | . . . . Impact . | . . . . Kinetic . | . . . . Secondary . | . . . . Self-Inflicted Damage . | . . . . Shots . | . . . . Rammed 1 | . . 1 . Targets Rammed 1 | . . 1 . Kicked . | . . . . Crushed . | . . . . Highest Temperature 39 | . 17 20 39 Average Temperature 8 | . 6 8 9 Received Heat Transfer 255 | . 66 . 189 Siege Activations . | . . . . Robots Corrupted . | . . . . Combat Hostiles . | . . . . Parts Fried . | . . . . Impact Corruptions . | . . . . Robots Melted . | . . . . Combat Hostiles . | . . . . Parts Melted . | . . . . Heat Transferred . | . . . . Parts Sabotaged . | . . . . Parts Stolen . | . . . . Parts Stripped . | . . . . Power Chain Reactions . | . . . . Alert | -11 -10 -10 -9 ------- Run | Yrd Mat Min Mat Peak Influence 220 | 5 220 151 126 Initial 61 | . 3 61 31 Average 92 | 1 119 84 61 Maximum Alert Level 1 | . 1 . . Low Security (%) 93 | 100 85 100 100 Level 1 6 | . 14 . . Level 2 . | . . . . Level 3 . | . . . . Level 4 . | . . . . Level 5 . | . . . . High Security . | . . . . Max Security . | . . . . Squads Dispatched 2 | . 2 . . Investigation . | . . . . Extermination . | . . . . Reinforcement 2 | . 2 . . Assault . | . . . . Garrison . | . . . . Intercept . | . . . . Searches Triggered . | . . . . Construction Impeded . | . . . . Haulers Reinforced . | . . . . Active Scanning Responses . | . . . . Cargo Convoy Interrupts . | . . . . Stealth | -11 -10 -10 -9 --------- Run | Yrd Mat Min Mat Distress Signals 4 | . 3 . 1 Communications Jammed . | . . . . Distress Signals . | . . . . Times Spotted 40 | . 29 5 6 Peak Tracking Total 5 | . 5 3 3 Tactical Retreats . | . . . . Traps | -11 -10 -10 -9 ------- Run | Yrd Mat Min Mat Traps Triggered 1 | . . . 1 Indirectly . | . . . . Trap Hack Attempts . | . . . . Triggered . | . . . . Disarmed . | . . . . Reprogrammed . | . . . . Reused . | . . . . Traps Extracted . | . . . . Installed . | . . . . Triggered . | . . . . Machines | -11 -10 -10 -9 ---------- Run | Yrd Mat Min Mat Machines Disabled . | . . . . Max in Single Turn . | . . . . Machines Repaired . | . . . . Machines Dismantled . | . . . . Machines Sabotaged . | . . . . Overloaded Fab Kills . | . . . . Hacking | -11 -10 -10 -9 --------- Run | Yrd Mat Min Mat Machines Accessed 6 | . 5 . 1 Terminals 4 | . 4 . . Fabricators . | . . . . Repair Stations 1 | . . . 1 Recycling Units 1 | . 1 . . Scanalyzers . | . . . . Garrison Access . | . . . . Total Hacks 11 | . 7 . 4 Successful 8 | . 4 . 4 Failed 3 | . 3 . . Catastrophic 2 | . 2 . . Database Lockouts . | . . . . Manual 1 | . 1 . . Terminals 6 | . 6 . . Fabricators . | . . . . Repair Stations 4 | . . . 4 Recycling Units 1 | . 1 . . Scanalyzers . | . . . . Garrison Access . | . . . . Terminal Hacks 3 | . 3 . . Prototype ID Bank 1 | . 1 . . Branch Access Points 1 | . 1 . . Hauler Manifests 1 | . 1 . . Fabricator Hacks . | . . . . Repair Station Hacks 4 | . . . 4 Scan Component 2 | . . . 2 Repair 2 | . . . 2 Recycling Unit Hacks 1 | . 1 . . Report Inventory 1 | . 1 . . Scanalyzer . | . . . . Garrison Access Hacks . | . . . . Unauthorized Hacks . | . . . . Terminals . | . . . . Fabricators . | . . . . Repair Stations . | . . . . Recycling Units . | . . . . Scanalyzers . | . . . . Garrison Access . | . . . . Data Cores Recovered . | . . . . Used . | . . . . Hacking Detections 3 | . 3 . . Full Trace Events . | . . . . Feedback Events . | . . . . Feedback Blocked . | . . . . Robot Schematics Acquired . | . . . . Robots Built . | . . . . Authchips . | . . . . Time . | . . . . Total Robot Build Rating . | . . . . Part Schematics Acquired . | . . . . Parts Built . | . . . . Authchips . | . . . . Time . | . . . . Total Part Build Rating . | . . . . Parts Repaired 2 | . . . 2 Time 134 | . . . 134 Parts Recycled . | . . . . Recycled Matter . | . . . . Retrieved Matter . | . . . . Retrieved Components . | . . . . Parts Scanalyzed . | . . . . Part Schematics Acquired . | . . . . Parts Damaged . | . . . . Bothacking | -11 -10 -10 -9 ------------ Run | Yrd Mat Min Mat Used RIF Installer . | . . . . Robots Hacked . | . . . . Non-combat . | . . . . Combat . | . . . . Robot Hacks Applied . | . . . . Relay Couplers Released . | . . . . Fabnet Peak Effective % . | . . . . Robots Rewired . | . . . . Allies Hacked . | . . . . Hacks Repelled . | . . . . Allies | -11 -10 -10 -9 -------- Run | Yrd Mat Min Mat Total Allies 3 | . . 3 . Largest Group 3 | . . 3 . Highest-Rated Group 40 | . . 40 . Highest-Rated Ally 16 | . . 16 . Total Orders 1 | . . 1 . ROAM 1 | . . 1 . Ally Attacks 6 | . . 6 . Total Damage 46 | . . 46 . Kills 3 | . . 3 . Allies Corrupted . | . . . . Allies Melted . | . . . . Intel | -11 -10 -10 -9 ------- Run | Yrd Mat Min Mat Robot Analysis Total . | . . . . Derelict Logs Recovered 1 | . . 1 . Drone Launches . | . . . . Drone Recoveries . | . . . . Exploration | -11 -10 -10 -9 ------------- Run | Yrd Mat Min Mat Turns Passed 2541 | 113 1172 732 524 Spaces Moved 1193 | 51 597 427 118 Core 7 | 7 . . . Treads 1186 | 44 597 427 118 Legs . | . . . . Wheels . | . . . . Hover . | . . . . Flight . | . . . . Fastest Speed 50 | 50 160 160 160 Average Speed 159 | 150 160 160 160 Slowest Speed 200 | 200 160 160 160 Overloaded Moves . | . . . . Propulsion Burnouts . | . . . . Robots Hopped . | . . . . Cave-ins Triggered . | . . . . Exploration Rate (%) 49 | 5 83 97 12 Regions Visited 3 Branch Regions 1 Pre-discovered Areas 1 | . . 1 . Known Exits Taken 1 | . 1 . . Unknown Exits Taken 2 | 1 . 1 . Scrap Searched 1 | . . 1 . Spaces Dug . | . . . . Terrain Destroyed . | . . . . Melee . | . . . . Projectile . | . . . . AOE . | . . . . Terrain Rammed . | . . . . Walls Destroyed . | . . . . Machines Disabled . | . . . . Actions | -11 -10 -10 -9 --------- Run | Yrd Mat Min Mat Total 1614 | 69 708 457 380 Wait 253 | . 31 15 207 Move 1190 | 50 596 426 118 Hop . | . . . . Pick Up 20 | 4 12 1 3 Fast Attach 14 | 6 3 . 5 Attach 2 | . . . 2 Detach 1 | . 1 . . Swap 4 | 1 2 1 . Drop 7 | . 4 2 1 Fire 119 | 8 59 11 41 Melee 3 | . . . 3 Ram . | . . . . Kick . | . . . . Crush 1 | . . 1 . Escape Stasis . | . . . . Rewire . | . . . . Trap . | . . . . Miscellaneous . | . . . . Route ------- -11/Scrapyard -10/Materials (discovered 6 exits: *Mat x3 / *Min x2 / [*Sub]) -10/Mines (discovered 2 exits: *Mat x2) -9/Materials History --------- Turn | Location | Event 19 | -11/Scrapyard | Discovered new exit (range 15) 114 | -11/Scrapyard | Entered Materials 142 | -10/Materials | Discovered new exit (range 15) 305 | -10/Materials | Build established: Mutant 344 | -10/Materials | Identified exit to Mines 543 | -10/Materials | Discovered new exit (range 7) 852 | -10/Materials | Discovered new exit (range 14) 1094 | -10/Materials | Discovered new exit (range 15) 1132 | -10/Materials | Discovered new exit (range 7) 1286 | -10/Materials | Entered Mines 1290 | -10/Mines | Met a Derelict bent on vengeance 1396 | -10/Mines | A weapon hastily lodged in a ceiling crevice suddenly fell to the ground 1459 | -10/Mines | Assisted by bots powering up and referring to "LRC-V3" 1516 | -10/Mines | Discovered new exit (range 6) 1608 | -10/Mines | Learned location of Storage (-7) 1681 | -10/Mines | Found a damaged Exp. Sensor Array with a note attached 1685 | -10/Mines | Found Prototype Device 1973 | -10/Mines | Discovered new exit (range 14) 2018 | -10/Mines | Entered Materials 2018 | -9/Materials | Evolved 2 slots: Propulsion x1, Utility x1 2018 | -9/Materials | Identified Exp. Sensor Array 2272 | -9/Materials | Repaired Exp. Sensor Array 2299 | -9/Materials | Repaired Lgt. Armor Plating 2542 | -9/Materials | Self-destructed Last Messages --------------- 02466_ M-13 Machinist repairs K-01 Serf. 02469_ U-05 Engineer lays Concrete. 02469_ U-05 Engineer builds a Wall. 02470_ U-05 Engineer lays Concrete. 02492_ Lgt. Treads severed. 02495_ Acquired Lgt. Treads. 02502_ Exp. Sensor Array destroyed. 02505_ Lgt. Treads destroyed. 02507_ Lgt. Assault Rifle destroyed. 02509_ L-31 Rogue destroyed. 02514_ K-01 Serf collects debris. 02515_ Acquired Katana. 02519_ Acquired Core Shielding. 02532_ Lgt. Nuclear Core destroyed. 02534_ Assault Rifle destroyed. 02535_ Destroyed Heat Sink. 02535_ G-34 Mercenary destroyed. 02537_ Sneak attack on M-13 Machinist. 02537_ Destroyed Wheel. [Achievement: Back For More] Map ----- +----------------------------------------------------+ | ???????????????????# [[ # #??? | | ???????????????????# # #??? | | ???????????????????######## #??? | | ???????????????????# # #??? | | ???????????????????# # #??? | | ???????????????????# / #??? | | ???????????????????# """ # #??? | | ???????????????????# """ # #??? | | ???????????????????# """ # #??? | | ???????????????????######## #??? | | ???????????????????# # #??? | | ???????????????????# ! # #??? | | ???????????????????# """ + #??? | | ???????????????????# """!%# #??? | | ???????????????????# """ # #??? | | ???????????????????# # #??? | | ???????????????????######## #??? | | ???????????????????# # #??? | | ???????????????????# ! # #??? | | ???????????????????#""" + #??? | | ???????????????????#"R =%# #??? | | ???????????????????#""" [=# #??? | | ???????????????????# # #??? | | ???????????????????######## #??? | | ??????????????????######### #??? | | ????????????####??# @#= #??? | | ????????????? ?# %+! #??? | | ???????????#] """?# g %# #??? | | ???????????# """ # k # #??? | | ???????????# """ #+####### ##?? | | ???????????# """ # ##### #?? | | ???????????# """ # #?? | | ???????????# / #?? | | ???????????# """ # ^ ^^ #?? | | ???????????# """ ### #?? | | ???????????# """ #?#######?? | | ???????????# """ #! ##?????????? | | ???????????? """ #[[=#??????????? | | ????????????? #%[*#??????????? | | ????????????#######[[ #??????????? | | ??????????????????#! #??????????? | | ??????????????????# #??????????? | | ??????????????????# #??????????? | | ??????????????????# #??????????? | | ??????????????????/ +??????????? | | ??????????????????# #??????????? | | ??????????????????# #??????????? | | ??????????????????? #??????????? | | ???????????????????#+#???????????? | | ?????????????????????????????????? | +----------------------------------------------------+ Best States ------------- Heat Dissipation 28 Energy Generation 14 Energy Capacity 250 Matter Stores 300 Matter Capacity 300 Sight Range 16 Robot Scan Range 20 Terrain Scan Density 10 Armor Coverage 150 Core Shielding 20 Evasion (%) 40 Recoil Reduction 3 Item Schematics ----------------- None Robot Schematics ------------------ None Fabricated ------------ Nothing Alien Tech Used ----------------- None Achievements -------------- Back For More Challenges ------------ None Game ------ Seed ChargeCryofiberMatter Manual? 0 Play Time 00:15:18 Cumulative 73.3 hours Start 2024.05.18 @ 14:48:25 End 2024.05.18 @ 15:08:49 Sessions 3 Manual Loads 0 Difficulty Rogue Special Mode None Game No. 50 Rogue 50 Adventurer 0 Explorer 0 Win Type - Total 1 Types 1/0/0/0/0/0/0/0/0 Lore% 34 Gallery% 47 Achievement% 34 Wizard Run 0 Options --------- Layout 0 ASCII 0 Keyboard 1 Movement Numpad Keybinds 0 Fullscreen 1 Font 24/Proggy Map View 76x56 Zoom Use 0% Tactical HUD 1 Map Filters NONE Filters NONE Steam 1 RUN: 01832381-dd4f-4ac1-88cc-4964cbb71c84